fUSD/lending_fUSD_20240520
["ID","MTS","AMOUNT","RATE_DAILY","PERIOD"]
[327583019,1716245450016,-1512.5,0.00038356,6]
[327583020,1716245450025,-500.0,0.00038356,6]
[327583021,1716245450035,-2614.89,0.00038356,6]
[327583022,1716245450044,-850.15,0.00038356,6]
[327583023,1716245450053,-2423.92,0.00038356,6]
[327583024,1716245450063,-510.76570157,0.00038356,6]
[327583025,1716245450072,-500.0,0.00038356,6]
[327583026,1716245450083,-500.0,0.00038356,6]
[327583027,1716245450091,-545.56,0.00038356,6]
[327583028,1716245450100,-406.6977212,0.00038356,6]
[327583029,1716245450110,-151.0,0.00038356,7]
[327583030,1716245450119,-2445.93,0.00038356,6]
[327583031,1716245450130,-290.72211,0.00038356,7]
[327583032,1716245450139,-151.0,0.00038356,7]
[327583033,1716245450148,-500.0,0.00038356,6]
[327583034,1716245450158,-151.0,0.00038356,7]
[327583035,1716245450167,-500.0,0.00038356,6]
[327583036,1716245450176,-504.89501778,0.00038356,6]
[327583037,1716245450185,-1000.0,0.00038356,6]
[327583038,1716245450194,-537.74,0.00038356,6]
[327583039,1716245450203,-612.86,0.00038356,6]
[327583040,1716245450212,-1457.79,0.00038356,6]
[327583041,1716245450221,-500.0,0.00038356,6]
[327583042,1716245450233,-500.0,0.00038356,6]
[327583043,1716245450242,-1187.27,0.00038356,6]
[327583044,1716245450252,-500.0,0.00038356,6]
[327583045,1716245450261,-500.0,0.00038356,6]
[327583046,1716245450271,-3080.59,0.00038356,6]
[327583047,1716245450280,-500.0,0.00038356,6]
[327583048,1716245450289,-151.0,0.00038356,7]
[327583049,1716245450298,-500.0,0.00038356,6]
[327583050,1716245450308,-500.0,0.00038356,6]
[327583051,1716245450319,-151.0,0.00038356,7]
[327583052,1716245450329,-500.0,0.00038356,6]
[327583053,1716245450339,-500.0,0.00038356,6]
[327583054,1716245450351,-151.0,0.00038356,7]
[327583055,1716245450360,-151.0,0.00038356,7]
[327583056,1716245450369,-151.0,0.00038356,7]
[327583057,1716245450380,-151.0,0.00038356,7]
[327583058,1716245450390,-500.0,0.00038356,6]
[327583059,1716245450400,-939.38,0.00038356,6]
[327583060,1716245450409,-936.27,0.00038356,6]
[327583061,1716245450420,-1145.85,0.00038356,6]
[327583062,1716245450430,-633.66,0.00038356,6]
[327583063,1716245450439,-500.0,0.00038356,6]
[327583064,1716245450448,-500.0,0.00038356,6]
[327583065,1716245450458,-500.0,0.00038356,6]
[327583066,1716245450469,-519.17250589,0.00038356,6]
[327583067,1716245450480,-500.0,0.00038356,6]
[327583068,1716245450489,-500.0,0.00038356,6]
[327583069,1716245450498,-500.0,0.00038356,6]
[327583070,1716245450508,-1256.39,0.00038356,6]
[327583071,1716245450518,-500.0,0.00038356,6]
[327583072,1716245450527,-1868.9,0.00038356,6]
[327583073,1716245450536,-500.0,0.00038356,6]
[327583074,1716245450545,-1093.65,0.00038356,6]
[327583075,1716245450555,-500.0,0.00038356,6]
[327583076,1716245450564,-500.0,0.00038356,6]
[327583077,1716245450573,-501.78,0.00038356,6]
[327583078,1716245450583,-500.0,0.00038356,6]
[327583079,1716245450592,-500.0,0.00038356,6]
[327583080,1716245450603,-500.0,0.00038356,6]
[327583081,1716245450612,-500.0,0.00038356,6]
[327583082,1716245450621,-1390.13,0.00038356,6]
[327583083,1716245450631,-500.0,0.00038356,6]
[327583084,1716245450640,-500.0,0.00038356,6]
[327583085,1716245450650,-521.10193537,0.00038356,6]
[327583086,1716245450660,-500.0,0.00038356,6]
[327583087,1716245450671,-527.27815493,0.00038356,6]
[327583088,1716245450681,-500.0,0.00038356,6]
[327583089,1716245450691,-500.0,0.00038356,6]
[327583090,1716245450700,-512.6953399,0.00038356,6]
[327583091,1716245450710,-500.0,0.00038356,6]
[327583092,1716245450719,-536.13,0.00038356,6]
[327583093,1716245450729,-443.02489921,0.00038356,6]
[327583094,1716245450738,-500.0,0.00038356,6]
[327583095,1716245450747,-500.0,0.00038356,6]
[327583096,1716245450757,-599.81,0.00038356,6]
[327583097,1716245450766,-500.0,0.00038356,6]
[327583098,1716245450776,-500.0,0.00038356,6]
[327583099,1716245450786,-1210.13,0.00038356,6]
[327583100,1716245450796,-533.3473744,0.00038356,6]
[327583101,1716245450805,-1008.66,0.00038356,6]
[327583102,1716245450815,-500.0,0.00038356,6]
[327583103,1716245450824,-949.73,0.00038356,6]
[327583104,1716245450833,-500.0,0.00038356,6]
[327583105,1716245450843,-500.0,0.00038356,6]
[327583106,1716245450854,-500.0,0.00038356,2]
[327583107,1716245450863,-507.76328713,0.00038356,6]
[327583108,1716245450878,-526.16080679,0.00038356,6]
[327583109,1716245450887,-507.5,0.00038356,6]
[327583110,1716245450896,-500.0,0.00038356,6]
[327583111,1716245450905,-500.0,0.00038356,6]
[327583112,1716245450914,-500.0,0.00038356,6]
[327583113,1716245450924,-500.0,0.00038356,6]
[327583114,1716245450934,-500.0,0.00038356,6]
[327583115,1716245450946,-500.0,0.00038356,6]
[327583116,1716245450956,-500.0,0.00038356,6]
[327583117,1716245450965,-500.0,0.00038356,6]
[327583118,1716245450974,-500.0,0.00038356,6]
[327583119,1716245450985,-500.0,0.00038356,6]
[327583120,1716245450994,-500.0,0.00038356,6]
[327583121,1716245451003,-500.0,0.00038356,6]
[327583122,1716245451012,-2488.2,0.00038356,6]
[327583123,1716245451024,-500.0,0.00038356,6]
[327583124,1716245451033,-159.276203,0.00038356,7]
[327583125,1716245451043,-159.276203,0.00038356,7]
[327583126,1716245451053,-500.0,0.00038356,6]
[327583127,1716245451063,-159.276203,0.00038356,7]
[327583128,1716245451072,-159.276203,0.00038356,7]
[327583129,1716245451081,-994.51,0.00038356,6]
[327583130,1716245451091,-500.0,0.00038356,6]
[327583131,1716245451101,-159.276203,0.00038356,7]
[327583132,1716245451110,-544.27,0.00038356,6]
[327583133,1716245451119,-500.0,0.00038356,6]
[327583134,1716245451128,-500.0,0.00038356,6]
[327583135,1716245451138,-500.0,0.00038356,6]
[327583136,1716245451147,-553.81,0.00038356,6]
[327583137,1716245451156,-151.0,0.00038356,7]
[327583138,1716245451165,-151.0,0.00038356,7]
[327583139,1716245451174,-358.602711,0.00038356,7]
[327583140,1716245451184,-151.0,0.00038356,7]
[327583141,1716245451193,-561.8,0.00038356,6]
[327583142,1716245451202,-151.0,0.00038356,7]
[327583143,1716245451211,-159.276203,0.00038356,7]
[327583144,1716245451220,-521.26400383,0.00038356,6]
[327583145,1716245451231,-500.0,0.00038356,6]
[327583146,1716245451240,-159.276203,0.00038356,7]
[327583147,1716245451250,-358.602711,0.00038356,7]
[327583148,1716245451259,-151.0,0.00038356,7]
[327583149,1716245451269,-358.602711,0.00038356,7]
[327583150,1716245451278,-159.276203,0.00038356,7]
[327583151,1716245451287,-159.276203,0.00038356,7]
[327583152,1716245451297,-358.602711,0.00038356,7]
[327583153,1716245451306,-159.276203,0.00038356,7]
[327583154,1716245451316,-358.602711,0.00038356,7]
[327583155,1716245451325,-813.72,0.00038356,6]
[327583156,1716245451335,-500.0,0.00038356,6]
[327583157,1716245451344,-151.0,0.00038356,7]
[327583158,1716245451354,-151.0,0.00038356,7]
[327583159,1716245451362,-498.66070553,0.00038356,6]
[327583160,1716245451372,-151.0,0.00038356,7]
[327583161,1716245451381,-358.602711,0.00038356,7]
[327583162,1716245451391,-166.478312,0.00038356,7]
[327583163,1716245451400,-358.602711,0.00038356,7]
[327583164,1716245451410,-358.602711,0.00038356,7]
[327583165,1716245451419,-358.602711,0.00038356,7]
[327583166,1716245451429,-500.0,0.00038356,6]
[327583167,1716245451438,-358.602711,0.00038356,7]
[327583168,1716245451448,-527.23,0.00038356,6]
[327583169,1716245451458,-151.0,0.00038356,7]
[327583170,1716245451467,-780.82,0.00038356,6]
[327583171,1716245451476,-500.0,0.00038356,6]
[327583172,1716245451485,-500.0,0.00038356,6]
[327583173,1716245451495,-500.0,0.00038356,6]
[327583174,1716245451504,-748.25,0.00038356,6]
[327583175,1716245451514,-540.34,0.00038356,6]
[327583176,1716245451524,-500.0,0.00038356,6]
[327583177,1716245451534,-500.0,0.00038356,6]
[327583178,1716245451543,-500.0,0.00038356,6]
[327583179,1716245451552,-500.0,0.00038356,6]
[327583180,1716245451561,-511.88856712,0.00038356,6]
[327583181,1716245451571,-500.0,0.00038356,6]
[327583182,1716245451580,-526.47035941,0.00038356,6]
[327583183,1716245451590,-576.59,0.00038356,6]
[327583184,1716245451599,-1049.02,0.00038356,6]
[327583185,1716245451609,-500.0,0.00038356,6]
[327583186,1716245451619,-3015.58,0.00038356,6]
[327583187,1716245451629,-500.0,0.00038356,6]
[327583188,1716245451639,-500.0,0.00038356,6]
[327583189,1716245451649,-500.0,0.00038356,6]
[327583190,1716245451658,-500.0,0.00038356,6]
[327583191,1716245451670,-500.0,0.00038356,6]
[327583192,1716245451680,-720.35,0.00038356,6]
[327583193,1716245451692,-2808.06,0.00038356,6]
[327583194,1716245451701,-500.0,0.00038356,6]
[327583195,1716245451712,-1197.9,0.00038356,6]
[327583196,1716245451721,-500.0,0.00038356,6]
[327583197,1716245451734,-3734.43,0.00038356,6]
[327583198,1716245451743,-706.28,0.00038356,6]
[327583199,1716245451753,-500.0,0.00038356,6]
[327583200,1716245451763,-500.0,0.00038356,6]
[327583201,1716245451773,-914.18,0.00038356,6]
[327583202,1716245451783,-517.80679913,0.00038356,6]
[327583203,1716245451793,-500.0,0.00038356,6]
[327583204,1716245451804,-185.645391,0.00038356,7]
[327583205,1716245451813,-500.0,0.00038356,6]
[327583206,1716245451823,-500.0,0.00038356,6]
[327583207,1716245451833,-500.0,0.00038356,6]
[327583208,1716245451842,-834.67,0.00038356,6]
[327583209,1716245451852,-555.57,0.00038356,6]
[327583210,1716245451862,-3244.42,0.00038356,6]
[327583211,1716245451874,-3077.27,0.00038356,6]
[327583212,1716245451884,-693.24,0.00038356,6]
[327583213,1716245451894,-500.0,0.00038356,6]
[327583214,1716245451903,-500.0,0.00038356,6]
[327583215,1716245451915,-618.2,0.00038356,6]
[327583216,1716245451924,-3754.49,0.00038356,6]
[327583217,1716245451934,-500.0,0.00038356,6]
[327583218,1716245451944,-500.0,0.00038356,6]
[327583219,1716245451955,-500.0,0.00038356,6]
[327583220,1716245451965,-500.0,0.00038356,6]
[327583221,1716245451975,-500.0,0.00038356,6]
[327583222,1716245451987,-500.0,0.00038356,6]
[327583223,1716245451997,-1764.94,0.00038356,6]
[327583224,1716245452007,-151.0,0.00038356,7]
[327583225,1716245452016,-151.0,0.00038356,7]
[327583226,1716245452026,-151.0,0.00038356,7]
[327583227,1716245452036,-151.0,0.00038356,7]
[327583228,1716245452046,-151.0,0.00038356,7]
[327583229,1716245452055,-500.0,0.00038356,6]
[327583230,1716245452065,-151.0,0.00038356,7]
[327583231,1716245452075,-500.0,0.00038356,6]
[327583232,1716245452084,-500.0,0.00038356,6]
[327583233,1716245452094,-500.0,0.00038356,6]
[327583234,1716245452104,-500.0,0.00038356,6]
[327583235,1716245452113,-500.0,0.00038356,6]
[327583236,1716245452123,-151.0,0.00038356,7]
[327583237,1716245452133,-5927.85,0.00038356,6]
[327583238,1716245452142,-151.0,0.00038356,7]
[327583239,1716245452152,-181.178196,0.00038356,7]
[327583240,1716245452162,-500.0,0.00038356,6]
[327583241,1716245452172,-811.91,0.00038356,6]
[327583242,1716245452182,-500.0,0.00038356,6]
[327583243,1716245452191,-1987.01,0.00038356,6]
[327583244,1716245452202,-500.0,0.00038356,6]
[327583245,1716245452211,-693.3,0.00038356,6]
[327583246,1716245452221,-500.0,0.00038356,6]
[327583247,1716245452232,-1541.83,0.00038356,6]
[327583248,1716245452241,-500.0,0.00038356,6]
[327583249,1716245452251,-500.0,0.00038356,6]
[327583250,1716245452261,-151.0,0.00038356,7]
[327583251,1716245452270,-500.0,0.00038356,6]
[327583252,1716245452280,-500.0,0.00038356,6]
[327583253,1716245452290,-500.0,0.00038356,6]
[327583254,1716245452300,-1597.12,0.00038356,6]
[327583255,1716245452310,-4898.33,0.00038356,6]
[327583256,1716245452320,-151.0,0.00038356,7]
[327583257,1716245452330,-151.0,0.00038356,7]
[327583258,1716245452339,-151.0,0.00038356,7]
[327583259,1716245452348,-500.0,0.00038356,6]
[327583260,1716245452358,-967.86,0.00038356,6]
[327583261,1716245452368,-151.0,0.00038356,7]
[327583262,1716245452377,-5026.25,0.00038356,6]
[327583263,1716245452387,-500.0,0.00038356,6]
[327583264,1716245452396,-151.0,0.00038356,7]
[327583265,1716245452406,-500.0,0.00038356,2]
[327583266,1716245452415,-500.0,0.00038356,6]
[327583267,1716245452425,-1796.9,0.00038356,6]
[327583268,1716245452435,-500.0,0.00038356,6]
[327583269,1716245452444,-505.81,0.00038356,6]
[327583270,1716245452454,-151.0,0.00038356,7]
[327583271,1716245452464,-151.0,0.00038356,7]
[327583272,1716245452473,-500.0,0.00038356,6]
[327583273,1716245452484,-241.904024,0.00038356,7]
[327583274,1716245452493,-500.0,0.00038356,6]
[327583275,1716245452503,-500.0,0.00038356,6]
[327583276,1716245452512,-500.0,0.00038356,6]
[327583277,1716245452522,-622.79,0.00038356,6]
[327583278,1716245452531,-500.0,0.00038356,6]
[327583279,1716245452541,-539.23034724,0.00038356,6]
[327583280,1716245452550,-500.0,0.00038356,6]
[327583281,1716245452560,-3209.36,0.00038356,6]
[327583282,1716245452570,-500.0,0.00038356,6]
[327583283,1716245452579,-500.0,0.00038356,6]
[327583284,1716245452589,-548.48,0.00038356,6]
[327583285,1716245452598,-500.0,0.00038356,6]
[327583286,1716245452608,-500.0,0.00038356,6]
[327583287,1716245452618,-2753.14,0.00038356,6]
[327583288,1716245452627,-500.0,0.00038356,6]
[327583289,1716245452637,-500.0,0.00038356,6]
[327583290,1716245452647,-16281.11,0.00038356,6]
[327583291,1716245452657,-500.0,0.00038356,6]
[327583292,1716245452667,-500.0,0.00038356,6]
[327583293,1716245452678,-406.17083555,0.00038356,6]
[327583294,1716245452690,-577.78,0.00038356,6]
[327583295,1716245452699,-2053.11,0.00038356,6]
[327583296,1716245452710,-500.0,0.00038356,6]
[327583297,1716245452720,-918.45,0.00038356,6]
[327583298,1716245452730,-1321.39,0.00038356,6]
[327583299,1716245452740,-500.0,0.00038356,6]
[327583300,1716245452751,-500.0,0.00038356,6]
[327583301,1716245452761,-1326.66,0.00038356,6]
[327583302,1716245452771,-285.498724,0.00038356,7]
[327583303,1716245452781,-285.498724,0.00038356,7]
[327583304,1716245452792,-285.498724,0.00038356,7]
[327583305,1716245452803,-500.0,0.00038356,6]
[327583306,1716245452814,-567.32,0.00038356,6]
[327583307,1716245452824,-285.498724,0.00038356,7]
[327583308,1716245452833,-751.58,0.00038356,6]
[327583309,1716245452843,-285.498724,0.00038356,7]
[327583310,1716245452852,-508.84117852,0.00038356,6]
[327583311,1716245452862,-526.49372188,0.00038356,6]
[327583312,1716245452875,-500.0,0.00038356,6]
[327583313,1716245452885,-513.36,0.00038356,6]
[327583314,1716245452895,-500.0,0.00038356,6]
[327583315,1716245452905,-1026.69,0.00038356,6]
[327583316,1716245452917,-2532.84,0.00038356,6]
[327583317,1716245452926,-500.0,0.00038356,6]
[327583318,1716245452936,-285.498724,0.00038356,7]
[327583319,1716245452948,-285.498724,0.00038356,7]
[327583320,1716245452958,-500.0,0.00038356,6]
[327583321,1716245452968,-500.0,0.00038356,6]
[327583322,1716245452978,-2101.19,0.00038356,6]
[327583323,1716245452988,-285.498724,0.00038356,7]
[327583324,1716245452997,-592.89,0.00038356,6]
[327583325,1716245453007,-285.498724,0.00038356,7]
[327583326,1716245453017,-285.498724,0.00038356,7]
[327583327,1716245453027,-570.68,0.00038356,6]
[327583328,1716245453036,-1055.63,0.00038356,6]
[327583329,1716245453045,-340.41023295,0.00038356,6]
[327583330,1716245453054,-620.38,0.00038356,6]
[327583331,1716245453064,-3413.59,0.00038356,6]
[327583332,1716245453074,-500.0,0.00038356,6]
[327583333,1716245453083,-500.0,0.00038356,6]
[327583334,1716245453092,-504.06,0.00038356,6]
[327583335,1716245453102,-1942.18,0.00038356,6]
[327583336,1716245453111,-740.56,0.00038356,6]
[327583337,1716245453121,-1251.93,0.00038356,6]
[327583338,1716245453131,-500.0,0.00038356,2]
[327583339,1716245453140,-500.0,0.00038356,2]
[327583340,1716245453150,-500.0,0.00038356,2]
[327583341,1716245453160,-500.0,0.00038356,2]
[327583342,1716245453169,-500.0,0.00038356,2]
[327583343,1716245453179,-500.0,0.00038356,2]
[327583344,1716245453189,-30429.05,0.00038356,6]
[327583345,1716245453199,-500.0,0.00038356,6]
[327583346,1716245453208,-158.08428,0.00038356,2]
[327583347,1716245453218,-158.08429,0.00038356,2]
[327583348,1716245453228,-500.0,0.00038356,2]
[327583349,1716245453238,-630.83,0.00038356,6]
[327583350,1716245453248,-500.0,0.00038356,6]
[327583351,1716245453259,-500.0,0.00038356,6]
[327583352,1716245453269,-1844.18,0.00038356,6]
[327583353,1716245453279,-815.91,0.00038356,6]
[327583354,1716245453289,-748.28,0.00038356,6]
[327583355,1716245453298,-537.74768464,0.00038356,6]
[327583356,1716245453309,-258.009433,0.00038356,7]
[327583357,1716245453318,-258.009433,0.00038356,7]
[327583358,1716245453328,-258.009433,0.00038356,7]
[327583359,1716245453338,-258.009433,0.00038356,7]
[327583360,1716245453347,-500.0,0.00038356,6]
[327583361,1716245453357,-3772.16,0.00038356,6]
[327583362,1716245453366,-258.009433,0.00038356,7]
[327583363,1716245453376,-500.0,0.00038356,6]
[327583364,1716245453386,-500.0,0.00038356,6]
[327583365,1716245453395,-500.0,0.00038356,6]
[327583366,1716245453404,-500.0,0.00038356,6]
[327583367,1716245453627,-500.0,0.00038356,6]
[327583368,1716245453638,-901.56,0.00038356,6]
[327583369,1716245453650,-2815.44,0.00038356,6]
[327583370,1716245453661,-258.009433,0.00038356,7]
[327583371,1716245453671,-258.009433,0.00038356,7]
[327583372,1716245453680,-804.6,0.00038356,6]
[327583373,1716245453690,-258.009433,0.00038356,7]
[327583374,1716245453699,-258.009433,0.00038356,7]
[327583375,1716245453708,-258.009433,0.00038356,7]
[327583376,1716245453718,-213.72100908,0.00038356,6]
[327583377,1716245453729,-500.0,0.00038356,6]
[327583378,1716245453740,-524.34645909,0.00038356,6]
[327583379,1716245453750,-547.89279144,0.00038356,6]
[327583380,1716245453759,-500.0,0.00038356,6]
[327583381,1716245453769,-13987.25,0.00038356,6]
[327583382,1716245453779,-997.22,0.00038356,6]
[327583383,1716245453790,-151.0,0.00038356,7]
[327583384,1716245453799,-1053.44,0.00038356,6]
[327583385,1716245453808,-699.25,0.00038356,6]
[327583386,1716245453817,-151.0,0.00038356,7]
[327583387,1716245453827,-151.0,0.00038356,7]
[327583388,1716245453836,-751.67,0.00038356,6]
[327583389,1716245453846,-500.0,0.00038356,6]
[327583390,1716245453855,-500.0,0.00038356,6]
[327583391,1716245453865,-1918.99,0.00038356,6]
[327583392,1716245453880,-4140.85,0.00038356,6]
[327583393,1716245453890,-500.0,0.00038356,6]
[327583394,1716245453899,-151.0,0.00038356,7]
[327583395,1716245453911,-500.0,0.00038356,6]
[327583396,1716245453920,-3236.59,0.00038356,6]
[327583397,1716245453931,-500.0,0.00038356,6]
[327583398,1716245453941,-520.70819257,0.00038356,6]
[327583399,1716245453954,-500.0,0.00038356,6]
[327583400,1716245453964,-2582.59,0.00038356,6]
[327583401,1716245453974,-500.0,0.00038356,6]
[327583402,1716245453986,-613.44,0.00038356,6]
[327583403,1716245453995,-500.0,0.00038356,6]
[327583404,1716245454005,-2877.6,0.00038356,6]
[327583405,1716245454014,-1530.58,0.00038356,6]
[327583406,1716245454024,-595.4,0.00038356,6]
[327583407,1716245454033,-151.0,0.00038356,7]
[327583408,1716245454043,-151.0,0.00038356,7]
[327583409,1716245454052,-3378.14,0.00038356,6]
[327583410,1716245454062,-500.0,0.00038356,6]
[327583411,1716245454072,-500.0,0.00038356,6]
[327583412,1716245454081,-938.82,0.00038356,6]
[327583413,1716245454090,-500.0,0.00038356,6]
[327583414,1716245454100,-500.0,0.00038356,6]
[327583415,1716245454110,-500.0,0.00038356,6]
[327583416,1716245454119,-500.0,0.00038356,6]
[327583417,1716245454128,-1615.98,0.00038356,6]
[327583418,1716245454138,-500.0,0.00038356,6]
[327583419,1716245454147,-8193.08,0.00038356,6]
[327583420,1716245454157,-500.0,0.00038356,6]
[327583421,1716245454166,-151.0,0.00038356,7]
[327583422,1716245454176,-151.0,0.00038356,7]
[327583423,1716245454186,-893.96,0.00038356,6]
[327583424,1716245454195,-19028.04,0.00038356,6]
[327583425,1716245454204,-500.67,0.00038356,6]
[327583426,1716245454213,-500.0,0.00038356,6]
[327583427,1716245454223,-575.4,0.00038356,6]
[327583428,1716245454233,-500.0,0.00038356,6]
[327583429,1716245454243,-1432.403189,0.00038356,7]
[327583430,1716245454253,-1432.403189,0.00038356,7]
[327583431,1716245454263,-2645.07,0.00038356,6]
[327583432,1716245454272,-500.0,0.00038356,6]
[327583433,1716245454282,-1432.403189,0.00038356,7]
[327583434,1716245454291,-2985.62,0.00038356,6]
[327583435,1716245454300,-1432.403189,0.00038356,7]
[327583436,1716245454310,-14091.29,0.00038356,6]
[327583437,1716245454319,-500.0,0.00038356,6]
[327583438,1716245454329,-500.0,0.00038356,6]
[327583439,1716245454339,-3314.39,0.00038356,6]
[327583440,1716245454348,-500.0,0.00038356,6]
[327583441,1716245454358,-500.0,0.00038356,6]
[327583442,1716245454368,-3347.33,0.00038356,6]
[327583443,1716245454377,-722.13,0.00038356,6]
[327583444,1716245454386,-500.0,0.00038356,6]
[327583445,1716245454395,-740.24,0.00038356,6]
[327583446,1716245454404,-500.0,0.00038356,6]
[327583447,1716245454414,-500.0,0.00038356,6]
[327583448,1716245454423,-151.0,0.00038356,7]
[327583449,1716245454432,-500.0,0.00038356,6]
[327583450,1716245454442,-1682.03,0.00038356,6]
[327583451,1716245454451,-151.0,0.00038356,7]
[327583452,1716245454460,-1982.85,0.00038356,6]
[327583453,1716245454470,-3691.86,0.00038356,6]
[327583454,1716245454479,-525.04,0.00038356,6]
[327583455,1716245454490,-500.0,0.00038356,6]
[327583456,1716245454499,-4880.13,0.00038356,6]
[327583457,1716245454509,-521.21073053,0.00038356,6]
[327583458,1716245454518,-500.0,0.00038356,6]
[327583459,1716245454528,-220.45777412,0.00038356,6]
[327583460,1716245454537,-500.0,0.00038356,6]
[327583461,1716245454546,-500.0,0.00038356,6]
[327583462,1716245454555,-3316.89,0.00038356,6]
[327583463,1716245454564,-5016.87,0.00038356,6]
[327583464,1716245454574,-4678.75,0.00038356,6]
[327583465,1716245454583,-500.0,0.00038356,6]
[327583466,1716245454592,-550.28,0.00038356,6]
[327583467,1716245454602,-500.0,0.00038356,6]
[327583468,1716245454611,-500.0,0.00038356,6]
[327583469,1716245454620,-538.37,0.00038356,6]
[327583470,1716245454630,-500.0,0.00038356,6]
[327583471,1716245454639,-500.0,0.00038356,6]
[327583472,1716245454648,-500.0,0.00038356,6]
[327583473,1716245454658,-500.0,0.00038356,6]
[327583474,1716245454668,-500.0,0.00038356,6]
[327583475,1716245454677,-500.0,0.00038356,6]
[327583476,1716245454686,-510.72388389,0.00038356,6]
[327583477,1716245454696,-1691.03,0.00038356,6]
[327583478,1716245454706,-500.0,0.00038356,6]
[327583479,1716245454716,-532.03,0.00038356,6]
[327583480,1716245454725,-500.0,0.00038356,6]
[327583481,1716245454736,-500.0,0.00038356,6]
[327583482,1716245454746,-2062.0,0.00038356,6]
[327583483,1716245454755,-164.98,0.00038356,6]
[327583484,1716245454765,-1235.65,0.00038356,6]
[327583485,1716245454774,-2558.3,0.00038356,6]
[327583486,1716245454783,-2062.15,0.00038356,6]
[327583487,1716245454794,-579.72,0.00038356,6]
[327583488,1716245454803,-500.0,0.00038356,6]
[327583489,1716245454812,-8337.52,0.00038356,6]
[327583490,1716245454822,-151.0,0.00038356,7]
[327583491,1716245454831,-2315.84,0.00038356,6]
[327583492,1716245454841,-500.0,0.00038356,6]
[327583493,1716245454850,-211.878045,0.00038356,7]
[327583494,1716245454860,-973.13,0.00038356,6]
[327583495,1716245454875,-500.0,0.00038356,6]
[327583496,1716245454884,-500.0,0.00038356,6]
[327583497,1716245454894,-500.0,0.00038356,6]
[327583498,1716245454904,-151.0,0.00038356,7]
[327583499,1716245454914,-151.0,0.00038356,7]
[327583500,1716245454924,-500.0,0.00038356,6]
[327583501,1716245454933,-500.0,0.00038356,6]
[327583502,1716245454944,-1471.56,0.00038356,6]
[327583503,1716245454955,-151.0,0.00038356,7]
[327583504,1716245454966,-1132.99,0.00038356,6]
[327583505,1716245454975,-151.0,0.00038356,7]
[327583506,1716245454986,-500.0,0.00038356,6]
[327583507,1716245454995,-500.0,0.00038356,6]
[327583508,1716245455005,-854.29,0.00038356,6]
[327583509,1716245455015,-2469.6,0.00038356,6]
[327583510,1716245455025,-151.0,0.00038356,7]
[327583511,1716245455035,-1951.27,0.00038356,6]
[327583512,1716245455045,-674.42,0.00038356,6]
[327583513,1716245455055,-1671.12,0.00038356,6]
[327583514,1716245455065,-689.39,0.00038356,6]
[327583515,1716245455074,-500.0,0.00038356,6]
[327583516,1716245455085,-3317.8,0.00038356,6]
[327583517,1716245455095,-500.0,0.00038356,6]
[327583518,1716245455104,-500.0,0.00038356,6]